fUST/lending_fUST_20240227
["ID","MTS","AMOUNT","RATE_DAILY","PERIOD"]
[315250363,1708966240215,-500.0,0.00019178,2]
[315250365,1708966240225,-500.0,0.00019178,2]
[315250367,1708966240234,-5031.57,0.00019178,2]
[315250369,1708966240243,-500.0,0.00019178,2]
[315250371,1708966240252,-500.0,0.00019178,2]
[315250373,1708966240261,-306.73743767,0.00019178,2]
[315250375,1708966240271,-500.0,0.00019178,2]
[315250377,1708966240280,-500.0,0.00019178,2]
[315250379,1708966240290,-500.0,0.00019178,2]
[315250381,1708966240305,-500.85128667,0.00019178,2]
[315250383,1708966240314,-500.0,0.00019178,2]
[315250385,1708966240324,-543.0771929,0.00019178,2]
[315250387,1708966240334,-1768.45,0.00019178,2]
[315250389,1708966240343,-863.65,0.00019178,2]
[315250391,1708966240352,-500.0,0.00019178,2]
[315250393,1708966240361,-432.63229669,0.00019178,2]
[315250395,1708966240370,-230.32522058,0.00019178,2]
[315250397,1708966240379,-500.0,0.00019178,2]
[315250399,1708966240388,-500.0,0.00019178,2]
[315250401,1708966240397,-1552.5,0.00019178,2]
[315250403,1708966240406,-579.17,0.00019178,2]
[315250405,1708966240414,-1352.13,0.00019178,2]
[315250406,1708966240424,-500.0,0.00019178,2]
[315250408,1708966240433,-500.0,0.00019178,2]
[315250410,1708966240442,-1089.57,0.00019178,2]
[315250412,1708966240451,-1070.02,0.00019178,2]
[315250414,1708966240460,-500.0,0.00019178,2]
[315250416,1708966240469,-500.0,0.00019178,2]
[315250418,1708966240478,-501.0655745,0.00019178,2]
[315250420,1708966240487,-500.0,0.00019178,2]
[315250422,1708966240496,-500.0,0.00019178,2]
[315250423,1708966240506,-500.0,0.00019178,2]
[315250425,1708966240515,-9980.43,0.00019178,2]
[315250427,1708966240525,-500.0,0.00019178,2]
[315250429,1708966240534,-500.0,0.00019178,2]
[315250431,1708966240543,-500.0,0.00019178,2]
[315250433,1708966240554,-500.0,0.00019178,2]
[315250435,1708966240563,-500.0,0.00019178,2]
[315250437,1708966240573,-500.0,0.00019178,2]
[315250439,1708966240582,-787.16,0.00019178,2]
[315250441,1708966240592,-500.0,0.00019178,2]
[315250443,1708966240601,-500.0,0.00019178,2]
[315250445,1708966240610,-500.0,0.00019178,2]
[315250448,1708966240620,-4193.46,0.00019178,2]
[315250451,1708966240629,-1122.81,0.00019178,2]
[315250453,1708966240638,-500.0,0.00019178,2]
[315250455,1708966240647,-500.0,0.00019178,2]
[315250457,1708966240656,-500.0,0.00019178,2]
[315250459,1708966240665,-168.20415055,0.00019178,2]
[315250461,1708966240674,-500.0,0.00019178,2]
[315250462,1708966240684,-500.0,0.00019178,2]
[315250464,1708966240693,-467.55041814,0.00019178,2]
[315250466,1708966240702,-2258.61,0.00019178,2]
[315250468,1708966240711,-500.0,0.00019178,2]
[315250470,1708966240720,-500.0,0.00019178,2]
[315250472,1708966240730,-1392.36,0.00019178,2]
[315250475,1708966240739,-500.0,0.00019178,2]
[315250478,1708966240748,-1087.87,0.00019178,2]
[315250481,1708966240757,-9075.2,0.00019178,2]
[315250484,1708966240767,-1572.78,0.00019178,2]
[315250486,1708966240776,-500.0,0.00019178,2]
[315250488,1708966240785,-500.0,0.00019178,2]
[315250490,1708966240794,-500.0,0.00019178,2]
[315250492,1708966240804,-972.48,0.00019178,2]
[315250494,1708966240814,-407.07496892,0.00019178,2]
[315250496,1708966240823,-652.68,0.00019178,2]
[315250498,1708966240833,-500.0,0.00019178,2]
[315250500,1708966240842,-500.0,0.00019178,2]
[315250502,1708966240851,-500.0,0.00019178,2]
[315250504,1708966240860,-606.48,0.00019178,2]
[315250506,1708966240870,-500.0,0.00019178,2]
[315250508,1708966240879,-500.0,0.00019178,2]
[315250510,1708966240888,-819.88,0.00019178,2]
[315250511,1708966240898,-500.0,0.00019178,2]
[315250513,1708966240907,-500.0,0.00019178,2]
[315250515,1708966240916,-276.13419307,0.00019178,2]
[315250517,1708966240925,-165.916644,0.00019178,2]
[315250519,1708966240934,-166.666666,0.00019178,2]
[315250521,1708966240943,-166.059238,0.00019178,2]
[315250523,1708966240952,-500.0,0.00019452,2]
[315250525,1708966240961,-500.0,0.00019452,2]
[315250527,1708966240969,-291.00212191,0.00019452,2]
[315250529,1708966240978,-500.0,0.00019452,2]
[315250531,1708966240987,-500.0,0.00019452,2]
[315250544,1708966241109,-500.35866528,0.00019452,2]
[315250546,1708966241118,-604.16,0.00019452,2]
[315250548,1708966241128,-500.0,0.00019452,2]
[315250550,1708966241137,-635.83996825,0.00019452,2]
[315250552,1708966241146,-1000.0,0.00019452,2]
[315250554,1708966241155,-500.0,0.00019452,2]
[315250556,1708966241165,-500.0,0.00019452,2]
[315250558,1708966241174,-500.0,0.00019452,2]
[315250560,1708966241184,-500.0,0.00019452,2]
[315250562,1708966241196,-500.0,0.00019452,2]
[315250564,1708966241205,-500.0,0.00019452,2]
[315250566,1708966241215,-500.0,0.00019452,2]
[315250568,1708966241224,-500.0,0.00019452,2]
[315250570,1708966241234,-500.0,0.00019452,2]
[315250572,1708966241242,-502.14294064,0.00019452,2]
[315250574,1708966241252,-501.52534223,0.00019452,2]
[315250576,1708966241261,-500.0,0.00019452,2]
[315250577,1708966241271,-500.0,0.00019452,2]
[315250579,1708966241281,-593.05407186,0.00019452,2]
[315250581,1708966241291,-500.0,0.00019452,2]
[315250583,1708966241302,-500.0,0.00019452,2]
[315250585,1708966241311,-500.0,0.00019452,2]
[315250587,1708966241321,-500.0,0.00019452,2]
[315250589,1708966241330,-500.0,0.00019452,2]
[315250591,1708966241341,-500.0,0.00019452,2]
[315250593,1708966241351,-284.91608667,0.00019452,2]
[315250595,1708966241360,-500.0,0.00019452,2]
[315250597,1708966241369,-500.0,0.00019452,2]
[315250599,1708966241379,-500.0,0.00019452,2]
[315250601,1708966241388,-500.0,0.00019452,2]
[315250603,1708966241397,-500.0,0.00019452,2]
[315250605,1708966241406,-500.0,0.00019452,2]
[315250607,1708966241416,-500.0,0.00019452,2]
[315250609,1708966241425,-500.0,0.00019452,2]
[315250611,1708966241434,-500.0,0.00019452,2]
[315250612,1708966241443,-449.10144349,0.00019452,2]
[315250613,1708966241453,-500.0,0.00019452,2]
[315250615,1708966241462,-500.0,0.00019452,2]
[315250617,1708966241471,-500.0,0.00019452,2]
[315250619,1708966241480,-713.41,0.00019452,2]
[315250621,1708966241489,-500.0,0.00019452,2]
[315250623,1708966241499,-500.0,0.00019452,2]
[315250625,1708966241508,-671.39,0.00019452,2]
[315250627,1708966241518,-500.0,0.00019452,2]
[315250629,1708966241527,-500.0,0.00019452,2]
[315250631,1708966241535,-576.68,0.00019452,2]
[315250633,1708966241544,-171.64068098,0.00019452,2]
[315250635,1708966241555,-151.25262955,0.00019452,2]
[315250637,1708966241564,-712.06,0.00019452,2]
[315250639,1708966241574,-500.0,0.00019452,2]
[315250641,1708966241583,-500.0,0.00019452,2]
[315250643,1708966241592,-5031.57,0.00019452,2]
[315250645,1708966241601,-500.0,0.00019452,2]
[315250647,1708966241610,-500.0,0.00019452,2]
[315250649,1708966241619,-500.0,0.00019452,2]
[315250651,1708966241628,-1768.45,0.00019452,2]
[315250653,1708966241637,-863.65,0.00019452,2]
[315250655,1708966241646,-1552.5,0.00019452,2]
[315250657,1708966241655,-1352.13,0.00019452,2]
[315250659,1708966241664,-500.0,0.00019452,2]
[315250660,1708966241673,-500.0,0.00019452,2]
[315250663,1708966241682,-1089.57,0.00019452,2]
[315250665,1708966241692,-1070.02,0.00019452,2]
[315250666,1708966241701,-607.73433503,0.00019452,2]
[315250668,1708966241710,-500.0,0.00019452,2]
[315250670,1708966241720,-500.0,0.00019452,2]
[315250672,1708966241729,-9980.43,0.00019452,2]
[315250674,1708966241739,-500.0,0.00019452,2]
[315250676,1708966241748,-287.53101348,0.00019452,2]
[315250678,1708966241757,-500.0,0.00019452,2]
[315250680,1708966241766,-787.16,0.00019452,2]
[315250682,1708966241775,-500.0,0.00019452,2]
[315250684,1708966241784,-170.41229033,0.00019452,2]
[315250686,1708966241793,-500.0,0.00019452,2]
[315250688,1708966241804,-4193.46,0.00019452,2]
[315250690,1708966241813,-1122.81,0.00019452,2]
[315250692,1708966241823,-500.0,0.00019452,2]
[315250694,1708966241832,-500.0,0.00019452,2]
[315250696,1708966241841,-2258.61,0.00019452,2]
[315250698,1708966241851,-500.0,0.00019452,2]
[315250700,1708966241860,-1392.36,0.00019452,2]
[315250702,1708966241869,-500.0,0.00019452,2]
[315250704,1708966241878,-1087.87,0.00019452,2]
[315250706,1708966241887,-9075.2,0.00019452,2]
[315250708,1708966241896,-1572.78,0.00019452,2]
[315250710,1708966241906,-500.0,0.00019452,2]
[315250712,1708966241915,-972.48,0.00019452,2]
[315250714,1708966241923,-652.68,0.00019452,2]
[315250716,1708966241932,-500.0,0.00019452,2]
[315250718,1708966241942,-606.48,0.00019452,2]
[315250720,1708966241951,-500.0,0.00019452,2]
[315250722,1708966241960,-500.0,0.00019452,2]
[315250724,1708966241970,-819.88,0.00019452,2]
[315250726,1708966241979,-172.04761987,0.00019452,2]
[315250728,1708966241988,-500.0,0.00019452,2]
[315250730,1708966241997,-367.13957607,0.00019509,2]
[315250732,1708966242006,-166.666666,0.00019627,2]
[315250734,1708966242015,-399.333294,0.00019725,2]
[315250736,1708966242024,-399.333294,0.00019725,2]
[315250737,1708966242033,-528.46,0.00019726,2]
[315250738,1708966242042,-500.0,0.00019726,2]
[315250739,1708966242053,-604.16,0.00019726,2]
[315250740,1708966242062,-311.85052786,0.00019726,2]
[315250741,1708966242071,-500.0,0.00019726,2]
[315250742,1708966242080,-510.36105547,0.00019726,2]
[315250743,1708966242089,-500.0,0.00019726,2]
[315250744,1708966242098,-298.70806404,0.00019726,2]
[315250745,1708966242107,-500.0,0.00019726,2]
[315250746,1708966242117,-500.0,0.00019726,2]
[315250747,1708966242126,-479.17651164,0.00019726,2]
[315250748,1708966242136,-500.0,0.00019726,2]
[315250749,1708966242145,-500.0,0.00019726,2]
[315250750,1708966242154,-500.0,0.00019726,2]
[315250752,1708966242164,-500.0,0.00019726,2]
[315250753,1708966242173,-713.41,0.00019726,2]
[315250754,1708966242183,-500.0,0.00019726,2]
[315250755,1708966242197,-671.39,0.00019726,2]
[315250756,1708966242207,-500.0,0.00019726,2]
[315250757,1708966242216,-576.68,0.00019726,2]
[315250758,1708966242226,-712.06,0.00019726,2]
[315250759,1708966242236,-500.0,0.00019726,2]
[315250760,1708966242246,-500.0,0.00019726,2]
[315250761,1708966242256,-5031.57,0.00019726,2]
[315250762,1708966242265,-1768.45,0.00019726,2]
[315250763,1708966242275,-863.65,0.00019726,2]
[315250764,1708966242314,-1552.5,0.00019726,2]
[315250765,1708966242323,-1352.13,0.00019726,2]
[315250766,1708966242332,-500.0,0.00019726,2]
[315250767,1708966242342,-1089.57,0.00019726,2]
[315250768,1708966242351,-1070.02,0.00019726,2]
[315250769,1708966242360,-356.05453121,0.00019726,2]
[315250770,1708966242369,-9980.43,0.00019726,2]
[315250771,1708966242379,-609.4828341,0.00019726,2]
[315250772,1708966242387,-500.0,0.00019726,2]
[315250773,1708966242397,-787.16,0.00019726,2]
[315250774,1708966242406,-500.0,0.00019726,2]
[315250775,1708966242415,-4193.46,0.00019726,2]
[315250776,1708966242424,-1122.81,0.00019726,2]
[315250777,1708966242433,-350.16228113,0.00019726,2]
[315250778,1708966242443,-2258.61,0.00019726,2]
[315250779,1708966242452,-500.0,0.00019726,2]
[315250781,1708966242461,-1392.36,0.00019726,2]
[315250783,1708966242470,-500.0,0.00019726,2]
[315250785,1708966242479,-1087.87,0.00019726,2]
[315250787,1708966242488,-9075.2,0.00019726,2]
[315250789,1708966242497,-1572.78,0.00019726,2]
[315250791,1708966242505,-972.48,0.00019726,2]
[315250793,1708966242515,-652.68,0.00019726,2]
[315250795,1708966242524,-500.0,0.00019726,2]
[315250796,1708966242533,-606.48,0.00019726,2]
[315250797,1708966242543,-819.88,0.00019726,2]
[315250798,1708966242553,-160.12079,0.00019865,2]
[315250799,1708966242562,-8230.24916882,0.0001989,2]
[315250800,1708966242571,-200.0,0.000199,2]
[315250801,1708966242580,-367.13957607,0.00019939,2]
[315250802,1708966242588,-160.0,0.00019999,2]
[315250803,1708966242597,-160.0,0.00019999,2]
[315250804,1708966242606,-160.0,0.00019999,2]
[315250805,1708966242615,-500.0,0.0002,2]
[315250806,1708966242623,-604.16,0.0002,2]
[315250807,1708966242632,-500.0,0.0002,2]
[315250808,1708966242641,-500.0,0.0002,2]
[315250809,1708966242650,-500.0,0.0002,2]
[315250810,1708966242658,-500.0,0.0002,2]
[315250811,1708966242669,-500.0,0.0002,2]
[315250812,1708966242678,-713.41,0.0002,2]
[315250813,1708966242686,-500.0,0.0002,2]
[315250814,1708966242695,-671.39,0.0002,2]
[315250815,1708966242704,-500.0,0.0002,2]
[315250816,1708966242712,-576.68,0.0002,2]
[315250817,1708966242721,-712.06,0.0002,2]
[315250818,1708966242730,-500.0,0.0002,2]
[315250819,1708966242738,-500.0,0.0002,2]
[315250820,1708966242747,-5031.57,0.0002,2]
[315250821,1708966242756,-1768.45,0.0002,2]
[315250822,1708966242765,-863.65,0.0002,2]
[315250823,1708966242774,-1552.5,0.0002,2]
[315250824,1708966242783,-1352.13,0.0002,2]
[315250825,1708966242792,-500.0,0.0002,2]
[315250826,1708966242802,-1089.57,0.0002,2]
[315250827,1708966242811,-1070.02,0.0002,2]
[315250828,1708966242820,-9980.43,0.0002,2]
[315250829,1708966242830,-50199.2776778,0.0002,2]
[315250830,1708966242839,-500.0,0.0002,2]
[315250831,1708966242849,-787.16,0.0002,2]
[315250832,1708966242859,-4193.46,0.0002,2]
[315250833,1708966242868,-1122.81,0.0002,2]
[315250834,1708966242877,-2258.61,0.0002,2]
[315250835,1708966242886,-500.0,0.0002,2]
[315250836,1708966242895,-1392.36,0.0002,2]
[315250837,1708966242904,-500.0,0.0002,2]
[315250838,1708966242912,-1087.87,0.0002,2]
[315250839,1708966242921,-9075.2,0.0002,2]
[315250840,1708966242930,-1572.78,0.0002,2]
[315250841,1708966242939,-972.48,0.0002,2]
[315250842,1708966242948,-652.68,0.0002,2]
[315250843,1708966242957,-500.0,0.0002,2]
[315250844,1708966242967,-606.48,0.0002,2]
[315250845,1708966242976,-819.88,0.0002,2]
[315250847,1708966242986,-153.0,0.00020055,2]
[315250848,1708966242995,-153.0,0.00020055,2]
[315250849,1708966243004,-153.0,0.00020055,2]
[315250850,1708966243013,-153.0,0.00020055,2]
[315250851,1708966243022,-153.0,0.00020055,2]
[315250852,1708966243031,-153.0,0.00020055,2]
[315250854,1708966243040,-153.0,0.00020055,2]
[315250856,1708966243050,-153.0,0.00020055,2]
[315250858,1708966243059,-153.0,0.00020055,2]
[315250859,1708966243068,-166.666666,0.00020076,2]
[315250861,1708966243077,-852.72439855,0.00020114,2]
[315250863,1708966243087,-160.0,0.00020177,2]
[315250865,1708966243096,-253.26527282,0.00020177,2]
[315250868,1708966243105,-160.0,0.00020177,2]
[315250869,1708966243114,-500.0,0.00020179,2]
[315250870,1708966243123,-191.8074923,0.00020192,2]
[315250871,1708966243132,-153.553935,0.00020192,2]
[315250873,1708966243141,-455.1304468,0.00020192,2]
[315250875,1708966243151,-306.0,0.00020192,2]
[315250877,1708966243160,-153.0,0.00020192,2]
[315250879,1708966243170,-200.5826354,0.00020192,2]
[315250881,1708966243180,-153.0,0.00020192,2]
[315250883,1708966243189,-200.5826354,0.00020192,2]
[315250885,1708966243200,-153.0,0.00020192,2]
[315250887,1708966243210,-153.0,0.00020192,2]
[315250889,1708966243219,-200.5826354,0.00020192,2]
[315250891,1708966243231,-153.0,0.00020192,2]
[315250892,1708966243241,-153.0,0.00020192,2]
[315250893,1708966243251,-153.0,0.00020192,2]
[315250894,1708966243260,-200.5826354,0.00020192,2]
[315250895,1708966243270,-153.0,0.00020192,2]
[315250897,1708966243280,-153.0,0.00020192,2]
[315250899,1708966243289,-153.0,0.00020192,2]
[315250900,1708966243299,-153.0,0.00020192,2]
[315250904,1708966243321,-200.5826354,0.00020192,2]
[315250906,1708966243331,-153.0,0.00020192,2]
[315250908,1708966243341,-200.5826354,0.00020192,2]
[315250910,1708966243351,-153.0,0.00020192,2]
[315250912,1708966243360,-153.0,0.00020192,2]
[315250914,1708966243369,-153.0,0.00020192,2]
[315250916,1708966243379,-200.5826354,0.00020192,2]
[315250918,1708966243388,-153.0,0.00020192,2]
[315250920,1708966243397,-153.0,0.00020192,2]
[315250922,1708966243408,-153.0,0.00020192,2]
[315250924,1708966243418,-153.0,0.00020192,2]
[315250926,1708966243428,-200.5826354,0.00020192,2]
[315250928,1708966243438,-153.0,0.00020192,2]
[315250930,1708966243451,-153.0,0.00020192,2]
[315250932,1708966243461,-200.5826354,0.00020192,2]
[315250934,1708966243472,-153.0,0.00020192,2]
[315250936,1708966243482,-153.0,0.00020192,2]
[315250938,1708966243491,-200.5569553,0.00020192,2]
[315250940,1708966243501,-306.0,0.00020192,2]
[315250942,1708966243510,-153.0,0.00020192,2]
[315250944,1708966243520,-852.72439853,0.00020201,2]
[315250946,1708966243529,-399.333294,0.00020213,2]
[315250948,1708966243539,-50000.0,0.00020214,2]
[315250950,1708966243549,-52445.24101518,0.00020214,2]
[315250952,1708966243563,-1204.36575034,0.00020214,2]
[315250954,1708966243572,-20412.4397727,0.00020214,2]
[315250956,1708966243581,-8942.04440042,0.00020214,2]
[315250958,1708966243590,-2500.9709717,0.00020229,2]
[315250960,1708966243600,-562.71846863,0.00020229,2]
[315250962,1708966243609,-4368.81554059,0.00020229,2]
[315250964,1708966243618,-3934.12710332,0.00020229,2]
[315250966,1708966243627,-449.88464238,0.00020229,2]
[315250968,1708966243636,-171.38462567,0.00020229,2]
[315250970,1708966243645,-243.58118859,0.00020272,2]
[315250972,1708966243654,-500.0,0.00020273,2]
[315250974,1708966243664,-604.16,0.00020273,2]
[315250976,1708966243673,-500.0,0.00020273,2]
[315250978,1708966243682,-500.0,0.00020273,2]
[315250980,1708966243691,-713.41,0.00020273,2]
[315250982,1708966243701,-671.39,0.00020273,2]
[315250984,1708966243710,-500.0,0.00020273,2]
[315250987,1708966243720,-576.68,0.00020273,2]
[315250989,1708966243729,-712.06,0.00020273,2]
[315250991,1708966243739,-500.0,0.00020273,2]
[315250993,1708966243748,-500.0,0.00020273,2]
[315250995,1708966243757,-5031.57,0.00020273,2]
[315250997,1708966243766,-1768.45,0.00020273,2]
[315250999,1708966243776,-863.65,0.00020273,2]
[315251001,1708966243785,-1552.5,0.00020273,2]
[315251003,1708966243794,-1352.13,0.00020273,2]
[315251005,1708966243806,-1089.57,0.00020273,2]
[315251007,1708966243815,-1070.02,0.00020273,2]
[315251009,1708966243825,-9980.43,0.00020273,2]
[315251011,1708966243834,-500.0,0.00020273,2]
[315251013,1708966243843,-787.16,0.00020273,2]
[315251015,1708966243852,-4193.46,0.00020273,2]
[315251017,1708966243862,-1122.81,0.00020273,2]
[315251019,1708966243871,-2258.61,0.00020273,2]
[315251035,1708966244009,-500.0,0.00020273,2]
[315251037,1708966244019,-1392.36,0.00020273,2]
[315251039,1708966244028,-500.0,0.00020273,2]
[315251041,1708966244037,-1087.87,0.00020273,2]
[315251043,1708966244046,-9075.2,0.00020273,2]
[315251045,1708966244058,-1572.78,0.00020273,2]
[315251047,1708966244067,-972.48,0.00020273,2]
[315251049,1708966244076,-652.68,0.00020273,2]
[315251051,1708966244085,-500.0,0.00020273,2]
[315251053,1708966244094,-606.48,0.00020273,2]
[315251055,1708966244103,-819.88,0.00020273,2]
[315251057,1708966244112,-852.72439853,0.00020289,2]
[315251059,1708966244121,-1212.46070112,0.00020328,2]
[315251061,1708966244130,-1212.44857324,0.00020328,2]
[315251063,1708966244139,-500.0,0.00020358,2]
[315251065,1708966244152,-367.13957607,0.0002037,2]
[315251067,1708966244161,-852.72439853,0.00020376,2]
[315251069,1708966244170,-852.72439853,0.00020463,2]
[315251071,1708966244181,-166.666666,0.00020524,2]
[315251073,1708966244190,-500.0,0.00020538,2]
[315251075,1708966244201,-500.0,0.00020547,2]
[315251077,1708966244211,-604.16,0.00020547,2]
[315251079,1708966244220,-500.0,0.00020547,2]
[315251081,1708966244230,-500.0,0.00020547,2]
[315251083,1708966244239,-713.41,0.00020547,2]
[315251085,1708966244249,-671.39,0.00020547,2]
[315251087,1708966244258,-500.0,0.00020547,2]
[315251089,1708966244268,-576.68,0.00020547,2]
[315251091,1708966244277,-712.06,0.00020547,2]
[315251093,1708966244286,-500.0,0.00020547,2]
[315251095,1708966244295,-500.0,0.00020547,2]
[315251097,1708966244306,-5031.57,0.00020547,2]
[315251099,1708966244315,-1768.45,0.00020547,2]
[315251101,1708966244324,-863.65,0.00020547,2]
[315251103,1708966244333,-1552.5,0.00020547,2]
[315251105,1708966244342,-1352.13,0.00020547,2]
[315251107,1708966244352,-1089.57,0.00020547,2]
[315251109,1708966244361,-1070.02,0.00020547,2]
[315251111,1708966244371,-9980.43,0.00020547,2]
[315251113,1708966244380,-469.46421808,0.00020547,2]
[315251115,1708966244388,-787.16,0.00020547,2]
[315251117,1708966244397,-4193.46,0.00020547,2]
[315251119,1708966244407,-1122.81,0.00020547,2]
[315251121,1708966244416,-2258.61,0.00020547,2]
[315251123,1708966244425,-500.0,0.00020547,2]
[315251125,1708966244434,-1392.36,0.00020547,2]
[315251127,1708966244442,-500.0,0.00020547,2]
[315251129,1708966244452,-1087.87,0.00020547,2]
[315251131,1708966244461,-9075.2,0.00020547,2]
[315251133,1708966244470,-1572.78,0.00020547,2]
[315251135,1708966244479,-972.48,0.00020547,2]
[315251137,1708966244489,-652.68,0.00020547,2]
[315251139,1708966244498,-500.0,0.00020547,2]
[315251141,1708966244508,-606.48,0.00020547,2]
[315251143,1708966244517,-819.88,0.00020547,2]
[315251145,1708966244526,-852.72439853,0.00020551,2]
[315251147,1708966244535,-852.72439853,0.00020638,2]
[315251149,1708966244544,-500.0,0.00020718,2]
[315251151,1708966244556,-852.72439853,0.00020725,2]
[315251153,1708966244565,-153.65780855,0.00020769,2]
[315251155,1708966244574,-1000.0,0.00020787,2]
[315251157,1708966244582,-1000.0,0.00020791,2]
[315251159,1708966244591,-367.13957607,0.000208,2]
[315251161,1708966244600,-1000.0,0.00020808,2]
[315251163,1708966244609,-852.72439853,0.00020813,2]
[315251165,1708966244618,-243.58118859,0.0002082,2]
[315251167,1708966244627,-500.0,0.00020821,2]
[315251169,1708966244637,-604.16,0.00020821,2]
[315251171,1708966244647,-500.0,0.00020821,2]
[315251173,1708966244658,-500.0,0.00020821,2]
[315251175,1708966244667,-713.41,0.00020821,2]
[315251177,1708966244677,-671.39,0.00020821,2]
[315251179,1708966244686,-500.0,0.00020821,2]
[315251181,1708966244695,-576.68,0.00020821,2]
[315251183,1708966244705,-712.06,0.00020821,2]
[315251185,1708966244714,-500.0,0.00020821,2]
[315251187,1708966244724,-500.0,0.00020821,2]
[315251189,1708966244734,-5031.57,0.00020821,2]
[315251191,1708966244743,-1768.45,0.00020821,2]
[315251193,1708966244752,-863.65,0.00020821,2]
[315251195,1708966244762,-1552.5,0.00020821,2]
[315251197,1708966244772,-1352.13,0.00020821,2]
[315251199,1708966244781,-1089.57,0.00020821,2]
[315251201,1708966244791,-1070.02,0.00020821,2]
[315251203,1708966244801,-9980.43,0.00020821,2]
[315251205,1708966244812,-787.16,0.00020821,2]
[315251207,1708966244822,-4193.46,0.00020821,2]
[315251209,1708966244832,-1122.81,0.00020821,2]
[315251211,1708966244843,-2258.61,0.00020821,2]
[315251212,1708966244852,-500.0,0.00020821,2]
[315251214,1708966244863,-1392.36,0.00020821,2]
[315251216,1708966244872,-500.0,0.00020821,2]
[315251218,1708966244881,-1087.87,0.00020821,2]
[315251220,1708966244891,-9075.2,0.00020821,2]
[315251222,1708966244900,-1572.78,0.00020821,2]
[315251224,1708966244909,-972.48,0.00020821,2]
[315251226,1708966244918,-652.68,0.00020821,2]
[315251228,1708966244928,-500.0,0.00020821,2]
[315251230,1708966244938,-606.48,0.00020821,2]
[315251232,1708966244947,-819.88,0.00020821,2]
[315251234,1708966244956,-380.12472515,0.00020883,2]
[315251236,1708966244965,-399.333294,0.00020893,2]
[315251238,1708966244975,-500.0,0.00020897,2]
[315251240,1708966244984,-231483.51392704,0.000209,2]
[315251242,1708966244993,-206.054472,0.000209,2]
[315251245,1708966245003,-206.054472,0.000209,2]
[315251247,1708966245013,-151.0,0.000209,2]
[315251249,1708966245022,-162.80312384,0.000209,2]
[315251251,1708966245031,-852.72439853,0.000209,2]
[315251253,1708966245040,-306.0,0.00020904,2]
[315251255,1708966245053,-1000.0,0.00020909,2]
[315251257,1708966245064,-1000.0,0.00020909,2]
[315251259,1708966245073,-1000.0,0.00020925,2]
[315251261,1708966245082,-300.0,0.00020937,2]
[315251263,1708966245091,-1000.0,0.00020958,2]
[315251265,1708966245100,-166.666666,0.00020973,2]
[315251267,1708966245112,-160.0,0.00020999,2]
[315251269,1708966245121,-237.99635956,0.00020999,2]
[315251271,1708966245130,-500.0,0.00020999,2]
[315251273,1708966245139,-500.0,0.00020999,2]
[315251275,1708966245148,-500.0,0.00020999,2]
[315251277,1708966245157,-500.0,0.00020999,2]
[315251279,1708966245167,-500.0,0.00020999,2]
[315251282,1708966245176,-500.0,0.00020999,2]
[315251285,1708966245185,-500.0,0.00020999,2]